fUSD/lending_fUSD_20240407
["ID","MTS","AMOUNT","RATE_DAILY","PERIOD"]
[321724789,1712471445063,-500.0,0.00021917,2]
[321724790,1712471445073,-514.5058336,0.00021917,2]
[321724791,1712471445082,-507.09250223,0.00021917,2]
[321724792,1712471445091,-500.0,0.00021917,2]
[321724793,1712471445100,-519.02611001,0.00021917,2]
[321724794,1712471445109,-500.0,0.00021917,2]
[321724795,1712471445118,-546.21922729,0.00021917,2]
[321724796,1712471445127,-510.76177155,0.00021917,2]
[321724797,1712471445137,-500.0,0.00021917,2]
[321724798,1712471445146,-514.04889069,0.00021917,2]
[321724799,1712471445155,-503.69415014,0.00021917,2]
[321724800,1712471445164,-500.0,0.00021917,2]
[321724801,1712471445173,-441.64856137,0.00021917,2]
[321724802,1712471445182,-389.50410057,0.00021917,2]
[321724803,1712471445192,-532.87022831,0.00021917,2]
[321724804,1712471445201,-505.83790728,0.00021917,2]
[321724805,1712471445210,-516.68437852,0.00021917,2]
[321724806,1712471445219,-505.12415963,0.00021917,2]
[321724807,1712471445229,-499.19644458,0.00021917,2]
[321724808,1712471445238,-501.07371086,0.00021917,2]
[321724809,1712471445247,-505.57811196,0.00021917,2]
[321724810,1712471445256,-508.76954964,0.00021917,2]
[321724811,1712471445265,-494.31804622,0.00021917,2]
[321724812,1712471445274,-503.83700775,0.00021917,2]
[321724813,1712471445284,-502.42216143,0.00021917,2]
[321724814,1712471445293,-500.0,0.00021917,2]
[321724815,1712471445302,-513.54231409,0.00021917,2]
[321724816,1712471445311,-506.43387087,0.00021917,2]
[321724817,1712471445320,-500.0,0.00021917,2]
[321724818,1712471445330,-509.99511243,0.00021917,2]
[321724819,1712471445339,-503.91053293,0.00021917,2]
[321724820,1712471445348,-636.90943255,0.00021917,2]
[321724821,1712471445357,-624.38609527,0.00021917,2]
[321724822,1712471445366,-301.63357724,0.00021917,2]
[321724823,1712471445381,-502.82262196,0.00021917,2]
[321724824,1712471445395,-500.0,0.00021917,2]
[321724825,1712471445404,-524.11386384,0.00021917,2]
[321724826,1712471445413,-503.98678921,0.00021917,2]
[321724827,1712471445422,-501.06846005,0.00021917,2]
[321724828,1712471445431,-500.0,0.00021917,2]
[321724829,1712471445441,-501.86082951,0.00021917,2]
[321724830,1712471445454,-343.27827872,0.00021917,2]
[321724831,1712471445463,-518.83321605,0.00021917,2]
[321724832,1712471445472,-519.31518966,0.00021917,2]
[321724833,1712471445481,-511.96870178,0.00021917,2]
[321724834,1712471445491,-519.63570313,0.00021917,2]
[321724835,1712471445500,-524.73801708,0.00021917,2]
[321724836,1712471445509,-498.03420508,0.00021917,2]
[321724837,1712471445518,-530.64251088,0.00021917,2]
[321724838,1712471445528,-632.81781855,0.00021917,2]
[321724839,1712471445538,-524.35261832,0.00021917,2]
[321724840,1712471445547,-500.0,0.00021917,2]
[321724841,1712471445556,-500.0,0.00021917,2]
[321724842,1712471445565,-524.02690315,0.00021917,2]
[321724843,1712471445574,-500.0,0.00021917,2]
[321724844,1712471445585,-188.38098227,0.00021917,2]
[321724845,1712471445595,-411.2381311,0.00021917,2]
[321724846,1712471445605,-536.20221041,0.00021917,2]
[321724847,1712471445614,-225.57422776,0.00021917,2]
[321724848,1712471445623,-500.0,0.00021917,2]
[321724849,1712471445632,-500.0,0.00021917,2]
[321724850,1712471445641,-530.2281512,0.00021917,2]
[321724851,1712471445650,-500.0,0.00021917,2]
[321724852,1712471445659,-532.25656227,0.00021917,2]
[321724853,1712471445668,-592.75380129,0.00021917,2]
[321724854,1712471445677,-522.44913043,0.00021917,2]
[321724855,1712471445686,-312.52189482,0.00021917,2]
[321724856,1712471445695,-528.11734355,0.00021917,2]
[321724857,1712471445704,-498.72997521,0.00021917,2]
[321724858,1712471445713,-520.53202855,0.00021917,2]
[321724859,1712471445722,-500.0,0.00021917,2]
[321724860,1712471445731,-542.21976852,0.00021917,2]
[321724861,1712471445740,-536.58316903,0.00021917,2]
[321724862,1712471445749,-517.98935179,0.00021917,2]
[321724863,1712471445758,-500.67522855,0.00021917,2]
[321724864,1712471445767,-509.85613176,0.00021917,2]
[321724865,1712471445776,-530.29162288,0.00021917,2]
[321724866,1712471445785,-526.37788586,0.00021917,2]
[321724867,1712471445794,-500.0,0.00021917,2]
[321724868,1712471445803,-500.0,0.00021917,2]
[321724869,1712471445813,-500.0,0.00021917,2]
[321724870,1712471445822,-544.67549257,0.00021917,2]
[321724871,1712471445831,-520.32274177,0.00021917,2]
[321724872,1712471445840,-500.0,0.00021917,2]
[321724873,1712471445849,-405.06135346,0.00021917,2]
[321724874,1712471445860,-522.16403032,0.00021917,2]
[321724875,1712471445874,-500.0,0.00021917,2]
[321724876,1712471445884,-500.0,0.00021917,2]
[321724877,1712471445893,-508.41047374,0.00021917,2]
[321724878,1712471445902,-500.0,0.00021917,2]
[321724879,1712471445911,-640.88840696,0.00021917,2]
[321724880,1712471445920,-399.40274827,0.00021917,2]
[321724881,1712471445929,-500.0,0.00021917,2]
[321724882,1712471445938,-500.0,0.00021917,2]
[321724883,1712471445947,-500.0,0.00021917,2]
[321724884,1712471445956,-518.74130344,0.00021917,2]
[321724885,1712471445965,-500.0,0.00021917,2]
[321724886,1712471445974,-557.20972737,0.00021917,2]
[321724887,1712471445983,-500.0,0.00021917,2]
[321724888,1712471445992,-510.37977087,0.00021917,2]
[321724889,1712471446001,-559.74579766,0.00021917,2]
[321724890,1712471446011,-524.2011046,0.00021917,2]
[321724892,1712471446021,-507.80699049,0.00021917,2]
[321724893,1712471446029,-442.12573785,0.00021917,2]
[321724894,1712471446039,-540.505947,0.00021917,2]
[321724895,1712471446049,-500.0,0.00021917,2]
[321724896,1712471446058,-500.0,0.00021917,2]
[321724897,1712471446066,-535.46455705,0.00021917,2]
[321724898,1712471446075,-500.0,0.00021917,2]
[321724899,1712471446084,-547.20555005,0.00021917,2]
[321724900,1712471446093,-528.94068815,0.00021917,2]
[321724901,1712471446102,-560.78683278,0.00021917,2]
[321724902,1712471446111,-500.0,0.00021917,2]
[321724903,1712471446120,-281.15338489,0.00021917,2]
[321724904,1712471446129,-500.0,0.00021917,2]
[321724905,1712471446139,-503.88401955,0.00021917,2]
[321724906,1712471446148,-500.0,0.00021917,2]
[321724907,1712471446157,-500.0,0.00021917,2]
[321724908,1712471446166,-506.16472429,0.00021917,2]
[321724909,1712471446174,-500.0,0.00021917,2]
[321724910,1712471446184,-176.41719702,0.00021917,2]
[321724911,1712471446193,-500.0,0.00021917,2]
[321724912,1712471446202,-500.0,0.00021917,2]
[321724913,1712471446211,-500.0,0.00021917,2]
[321724914,1712471446220,-500.0,0.00021917,2]
[321724915,1712471446229,-500.0,0.00021917,2]
[321724916,1712471446238,-500.0,0.00021917,2]
[321724917,1712471446247,-500.0,0.00021917,2]
[321724918,1712471446256,-500.0,0.00021917,2]
[321724919,1712471446265,-500.0,0.00021917,2]
[321724920,1712471446275,-500.0,0.00021917,2]
[321724921,1712471446284,-534.67603945,0.00021917,2]
[321724922,1712471446294,-500.0,0.00021917,2]
[321724923,1712471446303,-500.0,0.00021917,2]
[321724924,1712471446313,-511.33625693,0.00021917,2]
[321724925,1712471446322,-298.38209683,0.00021917,2]
[321724926,1712471446331,-478.55622394,0.00021917,2]
[321724927,1712471446340,-500.0,0.00021917,2]
[321724928,1712471446349,-500.0,0.00021917,2]
[321724929,1712471446359,-316.229226,0.00021917,2]
[321724930,1712471446369,-500.0,0.00021917,2]
[321724931,1712471446378,-536.0343215,0.00021917,2]
[321724932,1712471446388,-535.84604749,0.00021917,2]
[321724933,1712471446397,-508.19010164,0.00021917,2]
[321724934,1712471446406,-155.38576501,0.00021917,2]
[321724935,1712471446415,-508.04441184,0.00021917,2]
[321724936,1712471446424,-500.0,0.00021917,2]
[321724937,1712471446434,-503.81065139,0.00021917,2]
[321724938,1712471446443,-509.32114934,0.00021917,2]
[321724939,1712471446455,-500.0,0.00021917,2]
[321724940,1712471446464,-500.0,0.00021917,2]
[321724941,1712471446473,-500.0,0.00021917,2]
[321724942,1712471446482,-500.0,0.00021917,2]
[321724943,1712471446491,-500.0,0.00021917,2]
[321724944,1712471446502,-607.26295528,0.00021917,2]
[321724945,1712471446511,-500.0,0.00021917,2]
[321724946,1712471446521,-535.89423908,0.00021917,2]
[321724947,1712471446531,-500.0,0.00021917,2]
[321724948,1712471446540,-500.0,0.00021917,2]
[321724949,1712471446549,-518.6756862,0.00021917,2]
[321724950,1712471446559,-523.72925982,0.00021917,2]
[321724951,1712471446568,-448.08957814,0.00021917,2]
[321724952,1712471446578,-500.0,0.00021917,2]
[321724953,1712471446587,-500.0,0.00021917,2]
[321724954,1712471446598,-500.0,0.00021917,2]
[321724955,1712471446608,-500.0,0.00021917,2]
[321724956,1712471446617,-500.0,0.00021917,2]
[321724957,1712471446627,-159.11728912,0.00021917,2]
[321724958,1712471446636,-500.0,0.00021917,2]
[321724959,1712471446645,-500.0,0.00021917,2]
[321724960,1712471446655,-500.0,0.00021917,2]
[321724961,1712471446664,-292.23447994,0.00021917,2]
[321724962,1712471446673,-524.9151012,0.00021917,2]
[321724963,1712471446682,-522.98606887,0.00021917,2]
[321724964,1712471446693,-525.71946405,0.00021917,2]
[321724965,1712471446703,-526.4113218,0.00021917,2]
[321724966,1712471446712,-500.0,0.00021917,2]
[321724967,1712471446721,-500.0,0.00021917,2]
[321724968,1712471446731,-500.0,0.00021917,2]
[321724969,1712471446740,-500.0,0.00021917,2]
[321724970,1712471446750,-500.0,0.00021917,2]
[321724971,1712471446758,-517.97594196,0.00021917,2]
[321724972,1712471446767,-612.66228417,0.00021917,2]
[321724973,1712471446778,-552.85930168,0.00021917,2]
[321724974,1712471446788,-518.878698,0.00021917,2]
[321724975,1712471446797,-2205.48,0.00021917,2]
[321724976,1712471446806,-500.0,0.00021917,2]
[321724977,1712471446815,-2205.48,0.00021917,2]
[321724978,1712471446824,-297.88877109,0.00021917,2]
[321724979,1712471446833,-2205.48,0.00021917,2]
[321724980,1712471446842,-500.0,0.00021917,2]
[321724981,1712471446851,-2205.48,0.00021917,2]
[321724982,1712471446860,-500.0,0.00021917,2]
[321724983,1712471446869,-2205.48,0.00021917,2]
[321724984,1712471446877,-500.0,0.00021917,2]
[321724985,1712471446887,-500.0,0.00021917,2]
[321724986,1712471446895,-2205.48,0.00021917,2]
[321724987,1712471446904,-352.96986748,0.00021917,2]
[321724988,1712471446914,-2205.48,0.00021917,2]
[321724989,1712471446923,-2205.48,0.00021917,2]
[321724990,1712471446932,-2205.48,0.00021917,2]
[321724991,1712471446941,-2205.48,0.00021917,2]
[321724992,1712471446950,-2205.48,0.00021917,2]
[321724993,1712471446959,-2205.48,0.00021917,2]
[321724994,1712471446967,-2205.48,0.00021917,2]
[321724995,1712471446976,-2205.48,0.00021917,2]
[321724996,1712471446985,-2205.48,0.00021917,2]
[321724997,1712471446994,-2205.48,0.00021917,2]
[321724998,1712471447003,-2205.48,0.00021917,2]
[321724999,1712471447012,-2205.48,0.00021917,2]
[321725000,1712471447021,-2205.48,0.00021917,2]
[321725001,1712471447030,-2205.48,0.00021917,2]
[321725002,1712471447039,-2205.48,0.00021917,2]
[321725003,1712471447048,-2205.48,0.00021917,2]
[321725004,1712471447057,-2205.48,0.00021917,2]
[321725005,1712471447065,-511.96466592,0.00021917,2]
[321725006,1712471447074,-2205.53531208,0.00021917,2]
[321725007,1712471447083,-565.07612858,0.00021917,2]
[321725008,1712471447092,-513.56176671,0.00021917,2]
[321725009,1712471447101,-505.14134955,0.00021917,2]
[321725010,1712471447110,-500.0,0.00021917,2]
[321725011,1712471447119,-594.47750244,0.00021917,2]
[321725012,1712471447128,-500.0,0.00021917,2]
[321725013,1712471447138,-523.0128061,0.00021917,2]
[321725014,1712471447147,-151.17616603,0.00021917,2]
[321725015,1712471447156,-506.53651947,0.00021917,2]
[321725016,1712471447165,-500.0,0.00021917,2]
[321725017,1712471447174,-448.10131492,0.00021917,2]
[321725018,1712471447183,-519.83352942,0.00021917,2]
[321725019,1712471447192,-517.95427683,0.00021917,2]
[321725020,1712471447200,-536.19222834,0.00021917,2]
[321725021,1712471447209,-500.0,0.00021917,2]
[321725022,1712471447218,-500.0,0.00021917,2]
[321725023,1712471447227,-261.7228501,0.00021917,2]
[321725024,1712471447236,-511.46107534,0.00021917,2]
[321725025,1712471447245,-500.0,0.00021917,2]
[321725026,1712471447254,-154.66700561,0.00021917,2]
[321725027,1712471447263,-559.63791363,0.00021917,2]
[321725028,1712471447272,-511.28567923,0.00021917,2]
[321725029,1712471447281,-526.82547429,0.00021917,2]
[321725030,1712471447291,-500.0,0.00021917,2]
[321725031,1712471447300,-500.0,0.00021917,2]
[321725032,1712471447310,-387.0,0.00021917,2]
[321725033,1712471447319,-549.29836423,0.00021917,2]
[321725034,1712471447328,-510.06322636,0.00021917,2]
[321725035,1712471447337,-500.0,0.00021917,2]
[321725036,1712471447347,-229.82499635,0.00021917,2]
[321725037,1712471447356,-511.19466436,0.00021917,2]
[321725038,1712471447365,-523.77841707,0.00021917,2]
[321725039,1712471447374,-500.0,0.00021917,2]
[321725040,1712471447383,-500.0,0.00021917,2]
[321725041,1712471447392,-517.31555748,0.00021917,2]
[321725042,1712471447402,-220.64380643,0.00021917,2]
[321725043,1712471447411,-532.97528548,0.00021917,2]
[321725044,1712471447421,-500.0,0.00021917,2]
[321725045,1712471447431,-500.0,0.00021917,2]
[321725046,1712471447440,-632.16918847,0.00021917,2]
[321725047,1712471447451,-500.0,0.00021917,2]
[321725048,1712471447462,-500.0,0.00021917,2]
[321725049,1712471447471,-500.0,0.00021917,2]
[321725050,1712471447480,-500.0,0.00021917,2]
[321725051,1712471447489,-515.25785635,0.00021917,2]
[321725052,1712471447499,-273.70355466,0.00021917,2]
[321725053,1712471447508,-500.0,0.00021917,2]
[321725054,1712471447516,-500.0,0.00021917,2]
[321725055,1712471447526,-259.22612656,0.00021917,2]
[321725056,1712471447535,-500.0,0.00021917,2]
[321725057,1712471447545,-500.0,0.00021917,2]
[321725058,1712471447554,-500.0,0.00021917,2]
[321725059,1712471447563,-441.60645482,0.00021917,2]
[321725060,1712471447574,-507.58404361,0.00021917,2]
[321725061,1712471447583,-500.0,0.00021917,2]
[321725062,1712471447594,-500.0,0.00021917,2]
[321725063,1712471447604,-500.0,0.00021917,2]
[321725064,1712471447613,-304.76,0.00021917,2]
[321725065,1712471447622,-509.01112517,0.00021917,2]
[321725066,1712471447631,-535.58001217,0.00021917,2]
[321725067,1712471447641,-503.53210329,0.00021917,2]
[321725068,1712471447651,-509.31924862,0.00021917,2]
[321725069,1712471447782,-495.7667991,0.00021917,2]
[321725070,1712471447812,-533.80685786,0.00021917,2]
[321725071,1712471447821,-506.89216347,0.00021917,2]
[321725072,1712471447831,-226.9054537,0.00021917,2]
[321725073,1712471447840,-500.0,0.00021917,2]
[321725074,1712471447849,-182.62519042,0.00021917,2]
[321725075,1712471447858,-500.0,0.00021917,2]
[321725076,1712471447867,-510.38374699,0.00021917,2]
[321725077,1712471447876,-500.0,0.00021917,2]
[321725078,1712471447885,-271.82202261,0.00021917,2]
[321725079,1712471447894,-510.80025858,0.00021917,2]
[321725080,1712471447903,-155.18145893,0.00021917,2]
[321725081,1712471447912,-506.90481972,0.00021917,2]
[321725082,1712471447921,-510.06468523,0.00021917,2]
[321725083,1712471447930,-644.82505489,0.00021917,2]
[321725084,1712471447939,-500.0,0.00021917,2]
[321725085,1712471447948,-248.41037402,0.00021917,2]
[321725086,1712471447958,-505.61973522,0.00021917,2]
[321725087,1712471447967,-511.26558361,0.00021917,2]
[321725088,1712471447975,-500.0,0.00021917,2]
[321725089,1712471447985,-500.0,0.00021917,2]
[321725090,1712471447994,-364.76337344,0.00021917,2]
[321725091,1712471448003,-512.19579278,0.00021917,2]
[321725092,1712471448012,-508.2141778,0.00021917,2]
[321725093,1712471448021,-500.0,0.00021917,2]
[321725094,1712471448029,-500.0,0.00021917,2]
[321725095,1712471448038,-500.0,0.00021917,2]
[321725096,1712471448047,-571.12082213,0.00021917,2]
[321725097,1712471448056,-500.0,0.00021917,2]
[321725098,1712471448065,-465.63686686,0.00021917,2]
[321725099,1712471448074,-506.88641074,0.00021917,2]
[321725100,1712471448083,-500.0,0.00021917,2]
[321725101,1712471448092,-623.81299642,0.00021917,2]
[321725102,1712471448101,-628.01875043,0.00021917,2]
[321725103,1712471448109,-500.0,0.00021917,2]
[321725104,1712471448118,-500.0,0.00021917,2]
[321725105,1712471448127,-500.0,0.00021917,2]
[321725106,1712471448136,-500.0,0.00021917,2]
[321725107,1712471448145,-353.39647045,0.00021917,2]
[321725108,1712471448154,-500.0,0.00021917,2]
[321725109,1712471448164,-500.0,0.00021917,2]
[321725110,1712471448173,-500.0,0.00021917,2]
[321725111,1712471448182,-621.22216721,0.00021917,2]
[321725112,1712471448191,-500.0,0.00021917,2]
[321725113,1712471448201,-500.0,0.00021917,2]
[321725114,1712471448210,-581.21887573,0.00021917,2]
[321725115,1712471448219,-500.0,0.00021917,2]
[321725116,1712471448228,-500.0,0.00021917,2]
[321725117,1712471448237,-501.39462826,0.00021917,2]
[321725118,1712471448246,-506.39629386,0.00021917,2]
[321725119,1712471448255,-500.0,0.00021917,2]
[321725120,1712471448265,-423.22037125,0.00021917,2]
[321725121,1712471448274,-500.0,0.00021917,2]
[321725122,1712471448284,-500.0,0.00021917,2]
[321725123,1712471448293,-527.82480507,0.00021917,2]
[321725124,1712471448303,-512.58555516,0.00021917,2]
[321725125,1712471448312,-505.62608822,0.00021917,2]
[321725126,1712471448321,-504.00754164,0.00021917,2]
[321725127,1712471448330,-500.0,0.00021917,2]
[321725128,1712471448339,-500.0,0.00021917,2]
[321725129,1712471448349,-519.19888382,0.00021917,2]
[321725130,1712471448358,-500.0,0.00021917,2]
[321725131,1712471448369,-500.0,0.00021917,2]
[321725132,1712471448379,-443.48329373,0.00021917,2]
[321725133,1712471448398,-508.29304131,0.00021917,2]
[321725134,1712471448407,-641.57655762,0.00021917,2]
[321725135,1712471448416,-644.78060366,0.00021917,2]
[321725136,1712471448425,-594.88261462,0.00021917,2]
[321725137,1712471448440,-500.0,0.00021917,2]
[321725138,1712471448451,-270.86763285,0.00021917,2]
[321725139,1712471448461,-500.0,0.00021917,2]
[321725140,1712471448470,-500.0,0.00021917,2]
[321725141,1712471448479,-599.21288904,0.00021917,2]
[321725142,1712471448488,-500.0,0.00021917,2]
[321725143,1712471448498,-500.0,0.00021917,2]
[321725144,1712471448507,-500.0,0.00021917,2]
[321725145,1712471448516,-500.0,0.00021917,2]
[321725146,1712471448526,-222.32930588,0.00021917,2]
[321725147,1712471448536,-500.0,0.00021917,2]
[321725148,1712471448546,-506.98495233,0.00021917,2]
[321725149,1712471448555,-500.0,0.00021917,2]
[321725150,1712471448565,-500.0,0.00021917,2]
[321725151,1712471448574,-500.0,0.00021917,2]
[321725152,1712471448583,-500.0,0.00021917,2]
[321725153,1712471448592,-500.0,0.00021917,2]
[321725154,1712471448602,-500.0,0.00021917,2]
[321725155,1712471448611,-263.81421591,0.00021917,2]
[321725156,1712471448620,-500.0,0.00021917,2]
[321725157,1712471448629,-500.0,0.00021917,2]
[321725158,1712471448639,-500.0,0.00021917,2]
[321725159,1712471448648,-199.55800457,0.00021917,2]
[321725160,1712471448660,-513.99570795,0.00021917,2]
[321725161,1712471448669,-511.90910523,0.00021917,2]
[321725162,1712471448678,-519.75121137,0.00021917,2]
[321725163,1712471448688,-506.3689409,0.00021917,2]
[321725164,1712471448697,-500.0,0.00021917,2]
[321725165,1712471448706,-500.0,0.00021917,2]
[321725166,1712471448715,-500.0,0.00021917,2]
[321725167,1712471448724,-500.0,0.00021917,2]
[321725168,1712471448733,-500.0,0.00021917,2]
[321725169,1712471448742,-173.06899317,0.00021917,2]
[321725170,1712471448751,-617.69111177,0.00021917,2]
[321725171,1712471448760,-510.45282025,0.00021917,2]
[321725172,1712471448769,-516.02383503,0.00021917,2]
[321725173,1712471448779,-500.0,0.00021917,2]
[321725174,1712471448791,-601.84954584,0.00021917,2]
[321725175,1712471448800,-500.0,0.00021917,2]
[321725176,1712471448808,-500.0,0.00021917,2]
[321725177,1712471448817,-500.0,0.00021917,2]
[321725178,1712471448826,-494.94206282,0.00021917,2]
[321725179,1712471448835,-201.28875378,0.00021917,2]
[321725180,1712471448845,-500.00233926,0.00021917,2]
[321725181,1712471448854,-507.48748985,0.00021917,2]
[321725182,1712471448863,-500.0,0.00021917,2]
[321725183,1712471448873,-508.82072668,0.00021917,2]
[321725184,1712471448882,-511.11954552,0.00021917,2]
[321725185,1712471448892,-502.24805342,0.00021917,2]
[321725186,1712471448902,-500.0,0.00021917,2]
[321725187,1712471448912,-500.0,0.00021917,2]
[321725188,1712471448922,-501.38075278,0.00021917,2]
[321725189,1712471448934,-509.67297861,0.00021917,2]
[321725190,1712471448944,-500.0,0.00021917,2]
[321725191,1712471448953,-424.75884634,0.00021917,2]
[321725192,1712471448962,-504.28191294,0.00021917,2]
[321725193,1712471448971,-506.43688678,0.00021917,2]
[321725194,1712471448980,-500.0,0.00021917,2]
[321725195,1712471448989,-500.0,0.00021917,2]
[321725196,1712471448998,-500.0,0.00021917,2]
[321725197,1712471449008,-234.0586946,0.00021917,2]
[321725198,1712471449017,-503.85108298,0.00021917,2]
[321725199,1712471449025,-500.0,0.00021917,2]
[321725200,1712471449035,-500.0,0.00021917,2]
[321725201,1712471449044,-500.0,0.00021917,2]
[321725202,1712471449053,-500.0,0.00021917,2]
[321725203,1712471449062,-500.0,0.00021917,2]
[321725204,1712471449071,-500.0,0.00021917,2]
[321725205,1712471449080,-500.0,0.00021917,2]
[321725206,1712471449089,-500.0,0.00021917,2]
[321725207,1712471449098,-500.0,0.00021917,2]
[321725208,1712471449107,-500.0,0.00021917,2]
[321725209,1712471449116,-607.16969983,0.00021917,2]
[321725210,1712471449125,-500.0,0.00021917,2]
[321725211,1712471449134,-500.0,0.00021917,2]
[321725212,1712471449143,-506.04728474,0.00021917,2]
[321725213,1712471449152,-500.0,0.00021917,2]
[321725214,1712471449161,-500.0,0.00021917,2]
[321725215,1712471449170,-500.0,0.00021917,2]
[321725216,1712471449179,-500.0,0.00021917,2]
[321725217,1712471449188,-500.0,0.00021917,2]
[321725218,1712471449197,-500.0,0.00021917,2]
[321725219,1712471449206,-500.0,0.00021917,2]
[321725220,1712471449215,-500.0,0.00021917,2]
[321725221,1712471449224,-610.97303681,0.00021917,2]
[321725222,1712471449234,-500.0,0.00021917,2]
[321725223,1712471449244,-338.08324023,0.00021917,2]
[321725224,1712471449253,-500.0,0.00021917,2]
[321725225,1712471449262,-500.0,0.00021917,2]
[321725226,1712471449271,-500.0,0.00021917,2]
[321725227,1712471449280,-500.0,0.00021917,2]
[321725228,1712471449289,-507.08945772,0.00021917,2]
[321725229,1712471449298,-570.23380185,0.00021917,2]
[321725230,1712471449307,-500.0,0.00021917,2]
[321725231,1712471449317,-500.0,0.00021917,2]
[321725232,1712471449326,-500.0,0.00021917,2]
[321725233,1712471449335,-500.0,0.00021917,2]
[321725234,1712471449344,-500.0,0.00021917,2]
[321725235,1712471449353,-500.0,0.00021917,2]
[321725236,1712471449362,-512.86964324,0.00021917,2]
[321725237,1712471449372,-528.27913241,0.00021917,2]
[321725238,1712471449381,-500.0,0.00021917,2]
[321725239,1712471449390,-500.0,0.00021917,2]
[321725240,1712471449399,-500.0,0.00021917,2]
[321725241,1712471449408,-500.0,0.00021917,2]
[321725242,1712471449417,-239.06523106,0.00021917,2]
[321725243,1712471449426,-505.43931,0.00021917,2]
[321725244,1712471449435,-513.10461867,0.00021917,2]
[321725245,1712471449444,-500.0,0.00021917,2]
[321725246,1712471449457,-500.0,0.00021917,2]
[321725247,1712471449467,-505.87669416,0.00021917,2]
[321725248,1712471449476,-500.0,0.00021917,2]
[321725249,1712471449484,-500.0,0.00021917,2]
[321725250,1712471449495,-500.0,0.00021917,2]
[321725251,1712471449504,-526.60176219,0.00021917,2]
[321725252,1712471449512,-582.30905068,0.00021917,2]
[321725253,1712471449522,-262.30272843,0.00021917,2]
[321725254,1712471449532,-513.06503257,0.00021917,2]
[321725255,1712471449541,-542.15348764,0.00021917,2]
[321725256,1712471449550,-500.0,0.00021917,2]
[321725257,1712471449559,-500.0,0.00021917,2]
[321725258,1712471449568,-500.0,0.00021917,2]
[321725259,1712471449577,-500.0,0.00021917,2]
[321725260,1712471449586,-500.0,0.00021917,2]
[321725261,1712471449595,-500.0,0.00021917,2]
[321725262,1712471449604,-545.43884502,0.00021917,2]
[321725263,1712471449614,-500.0,0.00021917,2]
[321725264,1712471449624,-500.0,0.00021917,2]
[321725265,1712471449633,-500.0,0.00021917,2]
[321725266,1712471449641,-500.0,0.00021917,2]
[321725267,1712471449650,-500.0,0.00021917,2]
[321725268,1712471449660,-500.0,0.00021917,2]
[321725269,1712471449668,-500.0,0.00021917,2]
[321725270,1712471449678,-314.32745192,0.00021917,2]
[321725271,1712471449687,-348.5244254,0.00021917,2]
[321725272,1712471449696,-506.1477877,0.00021917,2]
[321725273,1712471449705,-500.0,0.00021917,2]
[321725274,1712471449714,-500.0,0.00021917,2]
[321725275,1712471449723,-500.0,0.00021917,2]
[321725276,1712471449732,-494.26493551,0.00021917,2]
[321725277,1712471449741,-500.0,0.00021917,2]
[321725278,1712471449750,-355.04505667,0.00021917,2]
[321725279,1712471449759,-500.0,0.00021917,2]
[321725280,1712471449767,-500.0,0.00021917,2]
[321725281,1712471449776,-500.0,0.00021917,2]
[321725282,1712471449785,-500.0,0.00021917,2]
[321725283,1712471449794,-364.00641889,0.00021917,2]
[321725284,1712471449803,-627.57799145,0.00021917,2]
[321725285,1712471449813,-541.55806508,0.00021917,2]
[321725286,1712471449824,-500.0,0.00021917,2]
[321725287,1712471449833,-593.91339712,0.00021917,2]
[321725288,1712471449843,-500.0,0.00021917,2]
[321725289,1712471449852,-500.0,0.00021917,2]